{"text_format":"2","workbook":"xlsx","n_sheets":3,"sheets":["Controle","Situação atual","Plan3"],"not_rendered":{"charts":0,"images":1,"macros":0,"external_links":0,"defined_names":0,"comments":0,"pivot_tables":0},"unopened":[],"bounds":{"document_bytes":16777216,"sheet_cells":100000,"run_cost":"one","rows_first":2000,"rows_last":500,"rows_between":2000,"halvings":0,"cell_chars":16384,"cell_head_chars":4096},"cells_cut":0,"cells_raw":0,"read":"whole","date_system":"1900"}

{"sheet":"Controle","index":0,"n_rows":54,"n_cols":15,"rows_kept":54,"cut":false,"hidden":false,"merged":[[26,11,26,14],[25,11,25,14],[24,11,24,14],[23,11,23,14],[33,11,33,14],[32,11,32,14],[53,11,53,12],[53,3,53,7],[53,0,53,2],[38,11,38,14],[49,11,49,14],[51,11,51,14],[52,0,52,14],[50,11,50,14],[34,11,34,14],[35,11,35,14],[36,11,36,14],[0,0,0,14],[39,12,39,14],[37,11,37,13],[22,11,22,14],[2,2,2,7],[1,0,1,14],[33,2,33,7],[12,11,12,14],[27,11,27,14],[29,11,29,14],[31,11,31,14],[28,11,28,14],[30,11,30,14]]}
["Controle de conclusão recenso Parcelas Permanentes - Mês de Agosto"]
[]
["Parc","Dia","Equipe executora",{"$nulls":5},"Outros","Integ","$ por int","Outra Atividade","Data","Equipe"]
["K13",6,null,"Edison",null,null,null,"Ivaldo",null,2,{"$f":"75/J4","v":37.5},"Ajuda campo Julia","2009-08-15","Sergio"]
["K14",7,null,"Edison",null,null,null,"Ivaldo",null,2,{"$f":"75/J5","v":37.5},"Chuva de sementes","2009-08-10","Edison"]
["K15",13,"Juninho","Edison",{"$nulls":5},2,{"$f":"75/J6","v":37.5},"Chuva de sementes","2009-08-10","Ivaldo"]
["L09",3,null,null,"Eduardo","Noeli",null,"Ivaldo",null,3,{"$f":"75/J7","v":25}]
["L10",5,null,null,"Eduardo","Noeli",null,"Ivaldo",null,3,{"$f":"75/J8","v":25}]
["L11",5,null,null,"Eduardo","Noeli",null,"Ivaldo",null,3,25]
["L12",12,"Juninho",null,"Eduardo",{"$nulls":4},2,37.5]
["L13",12,"Juninho",null,"Eduardo",{"$nulls":4},2,37.5]
["L14",13,null,null,"Eduardo","Noeli",null,null,null,2,37.5]
["L15",13,null,null,"Eduardo","Noeli",null,null,null,2,37.5]
["M00",12,{"$nulls":4},"Sergio","Ivaldo",null,2,37.5,"Integrante","Dias","$ por integ"]
["M01",12,{"$nulls":4},"Sergio","Ivaldo",null,2,37.5,"Edison",1,{"$f":"37.5*M15","v":37.5}]
["M02",12,{"$nulls":4},"Sergio","Ivaldo",null,2,37.5,"Eduardo",0,{"$f":"37.5*M16","v":0}]
["M03",13,{"$nulls":4},"Sergio","Ivaldo",null,2,37.5,"Ivaldo",1,37.5]
["M04",13,{"$nulls":4},"Sergio","Ivaldo",null,2,37.5,"Juninho",0,0]
["M05",14,{"$nulls":4},"Sergio","Ivaldo",null,2,37.5,"Noeli",0,0]
["M06",14,{"$nulls":4},"Sergio","Ivaldo",null,2,37.5,"Sergio",1,37.5]
["M07",17,{"$nulls":4},"Sergio","Ivaldo",null,2,37.5,null,"Total",{"$f":"SUM(N15:N20)","v":112.5}]
["N00",14,"Juninho","Edison",{"$nulls":5},2,37.5]
["N01",14,"Juninho","Edison",{"$nulls":5},2,37.5,"Observações"]
["N02",17,"Juninho","Edison","Eduardo",{"$nulls":4},3,25,"(1) Sergio só ficou uma semana. Não rendeu muito de novo. "]
["N03",17,"Juninho","Edison","Eduardo",{"$nulls":4},3,25,"O que o projeto gasta com a viagem ida e volta dele não"]
["N04",17,"Juninho","Edison","Eduardo",{"$nulls":4},3,25,"compensa. Falei para ele corrigir as parcelas antigas e não"]
["N05",19,"Juninho",{"$nulls":4},"Ivaldo",null,2,37.5,"vir mais, já que quando ele voltar o recenso já terá acabado."]
["N06",19,"Juninho",{"$nulls":4},"Ivaldo",null,2,37.5]
["N07",26,"Juninho","Edison",{"$nulls":5},2,37.5,"(2) Noeli também perdeu o ritmo. Está com problema de"]
["N08",27,"Juninho","Edison",null,null,null,"Ivaldo",null,3,25,"varizes nas pernas devido a gravidez. Falei para ela parar "]
["N09",27,"Juninho","Edison",null,null,null,"Ivaldo",null,3,25,"o campo e iniciar a digitalização dos mapas."]
["N10",28,"Juninho","Edison",null,null,null,"Ivaldo",null,3,25]
[{"$nulls":11},"(3) Noeli e Du já iniciaram a digitalização. Estão esperando"]
["Parc","Dia","Equipe executora",{"$nulls":5},"Outros","Integ","$ por int","a confirmação do valor que será pago por parcela feita."]
["N11",28,"Juninho","Edison",null,null,null,"Ivaldo",null,3,{"$f":"75/J35","v":25}]
["N12",28,"Juninho","Edison",null,null,null,"Ivaldo",null,3,25,"(4) Todas duplas estão terminando as correções das antigas."]
["N13",29,"Juninho",{"$nulls":4},"Ivaldo",null,2,37.5]
["N14",29,"Juninho",{"$nulls":4},"Ivaldo",null,2,37.5,"Total parcelas cumpridas em Julho",null,null,29]
["O00",14,null,null,"Eduardo","Noeli",null,null,null,2,37.5]
["O01",14,null,null,"Eduardo","Noeli",null,null,null,2,37.5,null,"Total de parcelas"]
["O02",20,null,null,"Eduardo","Noeli",null,null,null,2,37.5,"Integrante","Em 2","Em 3","$ Total"]
["O03",28,null,null,"Eduardo","Noeli",null,null,null,2,37.5]
["O04",28,null,null,"Eduardo","Noeli",null,null,null,2,37.5,"Edison",6,8,{"$f":"(M43*37.5)+(N43*25)+N15","v":462.5}]
["O05",31,"Juninho",null,"Eduardo",{"$nulls":4},2,37.5,"Eduardo",11,6,562.5]
["O06",31,"Juninho",null,"Eduardo",{"$nulls":4},2,37.5,"Ivaldo",14,8,762.5]
[{"$nulls":11},"Juninho",12,8,650]
[{"$nulls":11},"Noeli",7,3,337.5]
[{"$nulls":11},"Sergio",8,0,337.5]
[{"$nulls":13},"TOTAL",{"$f":"SUM(O42:O48)","v":3112.5}]
[]
[]
[]
[]
["Saldo final",null,null,"Total parcelas cumpridas em Agosto",{"$nulls":4},40,null,{"$f":"(I54*N54)+N21","v":3112.5},"Custo médio por parcela",null,75]

{"sheet":"Situação atual","index":1,"n_rows":25,"n_cols":15,"rows_kept":25,"cut":false,"hidden":false,"merged":[]}
[]
[]
[]
[]
[{"$nulls":14},"Parcelas finalizadas"]
[]
[{"$nulls":14},"Parcelas por fazer"]
[]
[]
[{"$nulls":13},"Ale, este mês eles vão trabalhar em"]
[{"$nulls":13},"duas duplas já que restam 30 parcelas"]
[{"$nulls":13},"por fazer."]
[{"$nulls":13},"Já que o campo está quase no final,"]
[{"$nulls":13},"acho melhor adiantarmos a digitalização."]
[{"$nulls":13},"Presisamos confirmar o valor a ser pago."]
[{"$nulls":13},"Como já te disse no relatório, deixei"]
[{"$nulls":13},"a Noeli já adiantando a digitalização"]
[{"$nulls":13},"e o Sergio não precisará mais vir, já que"]
[{"$nulls":13},"ele falou que só viria daqui a duas "]
[{"$nulls":13},"semanas, quando acredito que as"]
[{"$nulls":13},"outras duplas já terão finalizado, se a"]
[{"$nulls":13},"chuva não atrapalhar."]
[{"$nulls":13},"Agora as duplas serão:"]
[{"$nulls":13},"Eduardo e Ivaldo"]
[{"$nulls":13},"Juninho e Edison"]

{"sheet":"Plan3","index":2,"n_rows":0,"n_cols":0,"rows_kept":0,"cut":false,"hidden":false,"merged":[]}